{"text_format":"1","workbook":"xlsx","n_sheets":1,"sheets":["PIC18F25K22"],"not_rendered":{"charts":0,"images":0,"macros":1,"external_links":1,"defined_names":6,"comments":1,"pivot_tables":0},"unopened":[],"bounds":{"document_bytes":16777216,"sheet_cells":100000,"rows_first":2000,"rows_last":500,"rows_between":2000,"halvings":0,"cell_chars":16384,"cell_head_chars":4096},"cells_cut":0,"cells_raw":0,"read":"whole","date_system":"1900"}

{"sheet":"PIC18F25K22","index":0,"n_rows":103,"n_cols":26,"rows_kept":103,"cut":false,"hidden":false,"merged":[]}
["PIC18F25K22 (28-PIN SOIC) Microcontroller Pinout",null,null,null,null,null,null,null,null,null,null,null,null,null,null,null,null,null,"I/O Allocation"]
[null,null,"Configuration Options - [Enter all purposes for each pin here]"]
["Pin","Function","IO","ANALOG","COMPARATOR","CTMU","SR LATCH","REF.","ECCP","EUSART","MSSP","TIMERS","INTS","BASIC",null,null,null,null,"Item","Description","I/O","Micro","Pin","Function",null,"Comment"]
[1,"/MCLR VPP",null,null,null,null,null,null,null,null,null,null,null,"/MCLR VPP",null,null,null,null,1,"Battery Sense An","AI","AI",{"$f":"A5","v":2},{"$f":"IF(W4=\"\",\"\",VLOOKUP(W4,$A$4:$B$67,2,TRUE))","v":"AN0"}]
[2,"AN0","RA0","AN0","C12IN0-",null,null,null,null,null,null,null,null,null,null,null,null,null,2,"Wake In An","AI","AI",{"$f":"A6","v":3},"AN1"]
[3,"AN1","RA1","AN1","C12IN1-",null,null,null,null,null,null,null,null,null,null,null,null,null,3,"Learn In An","AI","AI",{"$f":"A7","v":4},"AN2"]
[4,"AN2","RA2","AN2","C2IN+",null,null,"VREF- DACOUT",null,null,null,null,null,null,null,null,null,null,4,"Wake Out L","O","O",{"$f":"A18","v":15},"RC4"]
[5,"C1IN+","RA3","AN3","C1IN+",null,null,"VREF+",null,null,null,null,null,null,null,null,null,null,5,"Backlight Enable L","O","O",{"$f":"A19","v":16},{"$f":"IF(W8=\"\",\"\",VLOOKUP(W8,$A$4:$B$67,2,TRUE))","v":"RC5"}]
[6,"C1OUT","RA4",null,"C1OUT",null,"SRQ",null,"CCP5",null,null,"TOCKI",null,null,null,null,null,null,6,"HBridge Phase A","PWM","PWM",{"$f":"A15","v":12},"CCP2 P2A"]
[7,"RA5","RA5","AN4","C2OUT",null,"SRNQ","HLVDIN",null,null,"/SS1",null,null,null,null,null,null,null,7,"HBridge Phase B","PWM","PWM",{"$f":"A16","v":13},"CCP1 P1A"]
[8,"VSS",null,null,null,null,null,null,null,null,null,null,null,"VSS",null,null,null,null,8,"HBridge Status","I","I",{"$f":"A14","v":11},"RC0"]
[9,"RA7","RA7",null,null,null,null,null,null,null,null,null,null,"OSC1 CLKI",null,null,null,null,9,"Key 1-2","I","I",{"$f":"A24","v":21},"INT0"]
[10,"RA6","RA6",null,null,null,null,null,null,null,null,null,null,"OSC2 CLKO",null,null,null,null,10,"Key 3-4","I","I",{"$f":"A25","v":22},"INT1"]
[11,"RC0","RC0",null,null,null,null,null,"P2B",null,null,"SOSCO T1CKI T3CKI T3G",null,null,null,null,null,null,11,"Key 5-6","I","I",{"$f":"A26","v":23},"INT2"]
[12,"CCP2 P2A","RC1",null,null,null,null,null,"CCP2 P2A",null,null,"SOSCI",null,null,null,null,null,null,12,"Key 7-8","I","I",{"$f":"A28","v":25},"KBI0"]
[13,"CCP1 P1A","RC2","AN14",null,"CTPLS",null,null,"CCP1 P1A",null,null,"T5CKI",null,null,null,null,null,null,13,"Key 9-0","I","I",{"$f":"A29","v":26},"KBI1"]
[14,"RC3","RC3","AN15",null,null,null,null,null,null,"SCK1 SCL1",null,null,null,null,null,null,null,14,"Acoustic Signal","O","O",{"$f":"A27","v":24},"RB3"]
[15,"RC4","RC4","AN16",null,null,null,null,null,null,"SDI1 SDA1",null,null,null,null,null,null,null,15,"LIN Rx","I","I",{"$f":"A21","v":18},"RX1 DT1"]
[16,"RC5","RC5","AN17",null,null,null,null,null,null,"SDO1",null,null,null,null,null,null,null,16,"LIN Tx","O","O",{"$f":"A20","v":17},"TX1 CK1",null,"The Microchip LIN demo board uses a different pinout"]
[17,"TX1 CK1","RC6","AN18",null,null,null,null,"CCP3 P3A","TX1 CK1",null,null,null,null,null,null,null,null,17,"LIN Enable L","O","O",{"$f":"A17","v":14},"RC3"]
[18,"RX1 DT1","RC7","AN19",null,null,null,null,"P3B","RX1 DT1",null,null,null,null,null,null,null,null,18,"HV Enable L","IOX","IOX",{"$f":"A9","v":6},"C1OUT",null,"Hardware threshold to shutdown drivers"]
[19,"VSS",null,null,null,null,null,null,null,null,null,null,null,"VSS",null,null,null,null,19,"HV Shutdown Level","AI","AI",{"$f":"A8","v":5},"C1IN+",null,"Alternate to internal DAC"]
[20,"VDD",null,null,null,null,null,null,null,null,null,null,null,"VDD",null,null,null,null,20,"JTAG Reset","O","I",{"$f":"A4","v":1},"/MCLR VPP"]
[21,"INT0","RB0","AN12",null,null,"SRI",null,"CCP4 FLT0",null,"/SS2",null,"INT0",null,null,null,null,null,21,"JTAG PGC","O","I",{"$f":"A31","v":28},"PGD"]
[22,"INT1","RB1","AN10","C12IN3-",null,null,null,"P1C",null,"SCK2 SCL2",null,"INT1",null,null,null,null,null,22,"JTAG PGD","O","I",{"$f":"A30","v":27},"PGC"]
[23,"INT2","RB2","AN8",null,"CTED1",null,null,"P1B",null,"SDI2 SDA2",null,"INT2",null,null,null,null,null,23,"Test Point 1","O","O",{"$f":"A10","v":7},{"$f":"IF(W26=\"\",\"\",VLOOKUP(W26,$A$4:$B$67,2,TRUE))","v":"RA5"}]
[24,"RB3","RB3","AN9","C12IN2-","CTED2",null,null,"CCP2 P2A",null,"SDO2",null,null,null,null,null,null,null,24,"Test Point 2","O","O",{"$f":"A12","v":9},"RA7"]
[25,"KBI0","RB4","AN11",null,null,"KBI0",null,"P1D",null,null,"T5G","IOC",null,null,null,null,null,25,"HV_Power_Good","O","O",{"$f":"A13","v":10},"RA6"]
[26,"KBI1","RB5","AN13",null,null,"KBI1",null,"CCP3 P3A P2B",null,null,"T1G T3CKI","IOC",null,null,null,null,null,26,"Vcc",null,null,{"$f":"A23","v":20},"VDD"]
[27,"PGC","RB6",null,null,null,"KBI2",null,null,"TXC CK2",null,null,"IOC","PGC",null,null,null,null,27,"Gnd",null,null,{"$f":"A11","v":8},"VSS"]
[28,"PGD","RB7",null,null,null,"KBI3",null,null,"RX2 DT2",null,null,"IOC","PGD",null,null,null,null,28,"Gnd",null,null,{"$f":"A22","v":19},"VSS"]
[]
[]
[]
[]
[]
[]
[]
[null,null,null,null,null,null,null,null,null,null,null,null,null,null,null,null,null,null,null,null,null,null,null,{"$f":"IF(W39=\"\",\"\",VLOOKUP(W39,$A$4:$B$67,2,TRUE))","v":""}]
[null,null,null,null,null,null,null,null,null,null,null,null,null,null,null,null,null,null,null,null,null,null,null,""]
[null,null,null,null,null,null,null,null,null,null,null,null,null,null,null,null,null,null,null,null,null,null,null,""]
[null,null,null,null,null,null,null,null,null,null,null,null,null,null,null,null,null,null,null,null,null,null,null,""]
[null,null,null,null,null,null,null,null,null,null,null,null,null,null,null,null,null,null,null,null,null,null,null,""]
[null,null,null,null,null,null,null,null,null,null,null,null,null,null,null,null,null,null,null,null,null,null,null,""]
[null,null,null,null,null,null,null,null,null,null,null,null,null,null,null,null,null,null,null,null,null,null,null,""]
[null,null,null,null,null,null,null,null,null,null,null,null,null,null,null,null,null,null,null,null,null,null,null,""]
[null,null,null,null,null,null,null,null,null,null,null,null,null,null,null,null,null,null,null,null,null,null,null,""]
[null,null,null,null,null,null,null,null,null,null,null,null,null,null,null,null,null,null,null,null,null,null,null,""]
[null,null,null,null,null,null,null,null,null,null,null,null,null,null,null,null,null,null,null,null,null,null,null,""]
[]
[]
[]
[]
[]
[]
[]
[]
[]
[]
[]
[]
[]
[]
[]
[]
[]
[]
[]
[null,{"$f":"MAX(A4:A67)-COUNTA(B4:B67)","v":0},"Remaining Pins"]
[]
[]
[]
[]
[]
[]
[]
[]
[]
[]
[]
[]
[]
[]
[]
[]
[]
[]
[null,null,null,null,null,null,null,null,null,null,null,null,null,null,null,null,null,null,85,null,null,null,null,{"$f":"IF(W88=\"\",\"\",VLOOKUP(W88,$A$4:$B$67,2,TRUE))","v":""}]
[null,null,null,null,null,null,null,null,null,null,null,null,null,null,null,null,null,null,86,null,null,null,null,{"$f":"IF(W89=\"\",\"\",VLOOKUP(W89,$A$4:$B$67,2,TRUE))","v":""}]
[null,null,null,null,null,null,null,null,null,null,null,null,null,null,null,null,null,null,87,null,null,null,null,{"$f":"IF(W90=\"\",\"\",VLOOKUP(W90,$A$4:$B$67,2,TRUE))","v":""}]
[null,null,null,null,null,null,null,null,null,null,null,null,null,null,null,null,null,null,88,null,null,null,null,{"$f":"IF(W91=\"\",\"\",VLOOKUP(W91,$A$4:$B$67,2,TRUE))","v":""}]
[null,null,null,null,null,null,null,null,null,null,null,null,null,null,null,null,null,null,89,null,null,null,null,{"$f":"IF(W92=\"\",\"\",VLOOKUP(W92,$A$4:$B$67,2,TRUE))","v":""}]
[]
[null,null,null,null,null,null,null,null,null,null,null,null,null,null,null,null,null,null,"Abbrev","I/O Type","Total","Allocated to micro","Balance"]
[null,null,null,null,null,null,null,null,null,null,null,null,null,null,null,null,null,null,"IO","I/O",{"$f":"COUNTIF(U$4:U$92,$S95)","v":0},0,{"$f":"U95-V95","v":0}]
[null,null,null,null,null,null,null,null,null,null,null,null,null,null,null,null,null,null,"I","Input",7,10,-3]
[null,null,null,null,null,null,null,null,null,null,null,null,null,null,null,null,null,null,"O","Output",11,8,3]
[null,null,null,null,null,null,null,null,null,null,null,null,null,null,null,null,null,null,"IOX","I/O and Tristate",1,1,0]
[null,null,null,null,null,null,null,null,null,null,null,null,null,null,null,null,null,null,"AI","Analog Input",4,4,0]
[null,null,null,null,null,null,null,null,null,null,null,null,null,null,null,null,null,null,"AO","Analog Output",0,0,0]
[null,null,null,null,null,null,null,null,null,null,null,null,null,null,null,null,null,null,"PWM","Pulse Width",2,2,0]
[null,null,null,null,null,null,null,null,null,null,null,null,null,null,null,null,null,null,null,null,0,0,0]
[null,null,null,null,null,null,null,null,null,null,null,null,null,null,null,null,null,null,null,"Total pins",{"$f":"SUM(U95:U102)","v":25},{"$f":"SUM(V95:V102)","v":25}]